[Event "Romanian GP Final KO 2023"]
[Site "Alba Iulia"]
[Date "2023.12.05"]
[Round "2.2"]
[White "Nanu, Costica-Ciprian"]
[Black "Parligras, Mircea-Emilian"]
[Result "1/2-1/2"]
[ECO "A13"]
[WhiteElo "2524"]
[BlackElo "2539"]
[Annotator "TA"]
[PlyCount "95"]
[EventDate "2023.12.04"]
[EventType "k.o."]
[EventCountry "ROU"]
[SourceTitle "playchess.com"]
[Source "ChessBase"]
[SourceQuality "1"]
[TimeControl "900+5"]

{[%evp 18,95,28,35,26,8,22,11,20,13,26,11,26,26,20,18,35,18,27,26,24,2,12,0,0,0,0,0,0,0,0,0,0,0,0,0,0,0,0,0,0,-8,-8,-8,-8,-17,-13,-12,-8,-66,0,0,31,35,38,32,35,3,84,0,0,0,0,0,0,0,0,0,0,0,0,0,0,0,0,0,0,0,0,0]} 1. c4 {[%emt 0:00:02]} e6 {[%emt 0:00:01]} 2. Nf3 {[%emt 0:00:07]} d5 {[%emt 0:00:01]} 3. e3 {[%emt 0:00:07]} Nf6 {[%emt 0:00:03]} 4. b3 {[%emt 0:00:03]} c5 {[%emt 0:00:05]} 5. Bb2 {[%emt 0:00:03]} Nc6 {[%emt 0:00:04]} 6. cxd5 {[%emt 0:00:04]} exd5 {[%emt 0:00:01]} 7. Be2 {[%emt 0:00:05]} Bd6 {[%emt 0:00:07]} 8. O-O {[%emt 0:00:11]} O-O {[%emt 0:00:02]} 9. d4 {[%emt 0:00:00]} cxd4 {[%emt 0:00:05]} 10. Nxd4 {[%emt 0:00:01]} Re8 {[%emt 0:00:20] A13: English Opening: 1...e6.} 11. Nd2 {[%emt 0:00:23]} Nxd4 {[%emt 0:01:20]} 12. Bxd4 {[%emt 0:00:02]} Bf5 {[%emt 0:00:01]} 13. Nf3 {[%emt 0:00:17]} Be4 {[%emt 0:00:26] [#]} 14. Bb5 $146 {[%emt 0:01:03]} ({Predecessor:} 14. Ng5 Bg6 15. Bb5 Re7 16. Bd3 Ne4 17. Nxe4 dxe4 18. Bc4 {½-½ Roim Ferreira,R-Lagergren,H (1877) W-ch WS/O/1479 email 2022}) 14... Rf8 {[%emt 0:00:01]} 15. Ng5 {[%emt 0:00:12]} a6 {[%emt 0:00:26]} 16. Nxe4 {[%emt 0:00:39]} dxe4 {[%emt 0:00:14]} 17. Bc4 {[%emt 0:00:14] A strong pair of Bishops.} b5 {[%emt 0:00:06]} 18. Be2 {[%emt 0:00:16][%cal Bc4e2,Be2g4,Bg4f5,Bf5e4][%mdl 32]} Ba3 {[%emt 0:00:32]} 19. Bg4 {[%emt 0:00:33]} Qe7 {[%emt 0:00:33]} 20. Bf5 {[%emt 0:00:36]} Rfe8 {[%emt 0:00:33][%cal Bf8e8,Be8d8,Bd8d2][%mdl 32]} 21. Qc2 {[%emt 0:00:37]} g6 {[%emt 0:00:12]} 22. Bxf6 {[%emt 0:01:11]} Qxf6 {[%emt 0:00:02]} 23. Bxe4 {[%emt 0:00:01]} Rac8 {[%emt 0:00:16]} 24. Qd3 {[%emt 0:00:07]} Rc3 $1 {[%emt 0:00:41]} 25. Qd5 {[%emt 0:00:38]} Rd8 {[%emt 0:01:49]} 26. Qb7 {[%emt 0:00:03]} Rd2 $1 {[%emt 0:00:33]} 27. Rad1 {[%emt 0:00:04]} Rxa2 {[%emt 0:00:47]} 28. g3 {[%emt 0:01:15]} Kg7 {[%emt 0:00:44]} 29. Qb8 {[%emt 0:02:55]} Bc5 {[%emt 0:00:55]} 30. Qf4 {[%emt 0:01:03]} Qxf4 {[%emt 0:00:23]} ({Resist} 30... Rxb3 31. Qxf6+ Kxf6 32. Bd5 $18) 31. gxf4 {[%emt 0:00:01]} Be7 {[%emt 0:01:41]} ({But not} 31... Rxb3 32. Bd5 Rbb2 33. Bxa2 Rxa2 34. Rd7 $16) 32. Rd7 {[%emt 0:00:58]} Kf8 {[%emt 0:00:01]} 33. Ra7 {[%emt 0:00:52]} ({White should play} 33. Rfd1 $11) 33... Rc8 {[%emt 0:01:23]} (33... Rxb3 $2 34. Rc1 Rd2 35. Rcc7 $18) ({Better is} 33... Rd2 $1 $15 34. f5 Bh4 35. Rxa6 Kg7) 34. Kg2 $11 {[%emt 0:00:28]} Bc5 {[%emt 0:00:34]} 35. Rc1 {[%emt 0:00:36] [#] Hoping for Rb7.} Bxa7 {[%emt 0:00:12]} 36. Rxc8+ $14 {[%emt 0:00:01][%mdl 4096] Endgame KRB-KRB} Kg7 {[%emt 0:00:01]} 37. Kf3 {[%emt 0:00:07]} Rd2 {[%emt 0:00:29]} (37... Bb6 $11 {keeps the balance.}) 38. b4 {[%emt 0:00:12]} (38. Rc6 $16) 38... Bb6 $11 {[%emt 0:00:26] The position is equal.} 39. Bb7 {[%emt 0:00:12]} a5 {[%emt 0:00:18]} 40. bxa5 {[%emt 0:00:14]} Bxa5 {[%emt 0:00:01]} 41. Rc5 {[%emt 0:00:32]} Bd8 {[%emt 0:00:11]} 42. Rxb5 {[%emt 0:00:17]} Bh4 {[%emt 0:00:04]} 43. Bd5 {[%emt 0:00:21]} Rxf2+ {[%emt 0:00:59]} 44. Kg4 {[%emt 0:00:11]} Be7 {[%emt 0:00:02]} 45. Rb7 {[%emt 0:00:04]} Kf8 {[%emt 0:00:02]} 46. Rb8+ {[%emt 0:00:14]} Kg7 47. Rb7 {[%emt 0:00:48]} Kf8 {[%emt 0:00:03]} 48. Rb8+ {[%emt 0:00:00] Weighted Error Value: White=0.09 (flawless) /Black=0.08 (flawless)} 1/2-1/2

[Event "Romanian GP Final KO 2023"]
[Site "Alba Iulia"]
[Date "2023.12.05"]
[Round "2.2"]
[White "Ardelean, George-Catalin"]
[Black "Kantor, Gergely"]
[Result "0-1"]
[ECO "D00"]
[WhiteElo "2433"]
[BlackElo "2527"]
[Annotator "RC"]
[PlyCount "42"]
[EventDate "2023.12.04"]
[EventType "k.o."]
[EventCountry "ROU"]
[SourceTitle "playchess.com"]
[Source "ChessBase"]
[SourceQuality "1"]
[TimeControl "900+5"]

1. d4 {[%emt 0:00:02]} Nf6 {[%emt 0:00:01]} 2. Bf4 {[%emt 0:00:02]} d5 {[%emt 0:00:03]} 3. e3 {[%emt 0:00:01]} c5 {[%emt 0:00:05]} 4. Nc3 {[%emt 0:00:02]} Bg4 {[%emt 0:02:24]} 5. f3 {[%emt 0:01:39]} Bd7 {[%emt 0:00:03]} 6. dxc5 {[%emt 0:00:33]} Qa5 {[%emt 0:00:26]} 7. Bxb8 {[%emt 0:01:53]} Rxb8 {[%emt 0:00:16]} 8. Qd4 {[%emt 0:00:02]} e6 {[%emt 0:04:51]} 9. b4 {[%emt 0:00:04]} Qd8 {[%emt 0:00:01]} 10. Bb5 {[%emt 0:04:02]} Rc8 {[%emt 0:00:26]} 11. Nge2 {[%emt 0:00:49]} b6 {[%emt 0:01:37]} 12. cxb6 {[%emt 0:00:15]} Bxb5 {[%emt 0:00:34]} 13. Nxb5 {[%emt 0:00:59]} Rc4 {[%emt 0:00:25]} 14. Nc7+ {[%emt 0:05:29]} Kd7 {[%emt 0:00:01]} 15. Qxc4 {[%emt 0:00:07]} dxc4 {[%emt 0:00:03]} 16. O-O-O+ {[%emt 0:00:07]} Bd6 {[%emt 0:00:26]} 17. Nb5 {[%emt 0:00:15]} Nd5 {[%emt 0:00:11]} 18. bxa7 {[%emt 0:00:07]} Qb6 {[%emt 0:00:28]} 19. Ned4 {[%emt 0:00:06]} Nxe3 {[%emt 0:00:16]} 20. Rd2 {[%emt 0:00:02]} Nd5 {[%emt 0:00:05]} 21. g3 {[%emt 0:00:05]} Bxb4 {[%emt 0:00:03]} 0-1

[Event "Romanian GP Final KO 2023"]
[Site "Alba Iulia"]
[Date "2023.12.05"]
[Round "2.2"]
[White "Toma, Radu-Cristian"]
[Black "Serban, Cristian-Stefan"]
[Result "0-1"]
[ECO "A06"]
[WhiteElo "2387"]
[BlackElo "2332"]
[Annotator "RC"]
[PlyCount "140"]
[EventDate "2023.12.04"]
[EventType "k.o."]
[EventCountry "ROU"]
[SourceTitle "playchess.com"]
[Source "ChessBase"]
[SourceQuality "1"]
[TimeControl "900+5"]

1. Nf3 {[%emt 0:00:02]} d5 {[%emt 0:00:01]} 2. e3 {[%emt 0:00:01]} Nf6 {[%emt 0:00:03]} 3. b3 {[%emt 0:00:03]} c5 {[%emt 0:00:06]} 4. Ba3 {[%emt 0:00:15]} e6 {[%emt 0:00:12]} 5. c4 {[%emt 0:00:13]} dxc4 {[%emt 0:02:32]} 6. Bxc4 {[%emt 0:00:25]} Be7 {[%emt 0:00:03]} 7. O-O {[%emt 0:00:24]} Nc6 {[%emt 0:00:08]} 8. Qe2 {[%emt 0:00:41]} a6 {[%emt 0:00:10]} 9. Rc1 {[%emt 0:00:24]} b5 {[%emt 0:00:33]} 10. Bd3 {[%emt 0:00:10]} Qb6 {[%emt 0:00:03]} 11. Bb2 {[%emt 0:02:12]} Nb4 {[%emt 0:00:58]} 12. Bc2 {[%emt 0:00:24]} Bb7 {[%emt 0:00:29]} 13. d3 {[%emt 0:00:34]} O-O {[%emt 0:00:44]} 14. Nbd2 {[%emt 0:00:21]} Rac8 {[%emt 0:00:57]} 15. Bb1 {[%emt 0:00:10]} Rfd8 {[%emt 0:00:07]} 16. a3 {[%emt 0:00:06]} Nc6 {[%emt 0:00:03]} 17. Ra2 {[%emt 0:00:26]} h6 {[%emt 0:00:28]} 18. Ba1 {[%emt 0:00:22]} Nd7 {[%emt 0:01:21]} 19. Ne4 {[%emt 0:00:10]} Na5 {[%emt 0:00:21]} 20. Nfd2 {[%emt 0:01:08]} Bxe4 {[%emt 0:00:22]} 21. dxe4 {[%emt 0:00:18]} e5 {[%emt 0:00:03]} 22. Rac2 {[%emt 0:00:17]} Nb7 {[%emt 0:01:23]} 23. Nf3 {[%emt 0:00:26]} Qe6 {[%emt 0:00:10]} 24. Ba2 {[%emt 0:00:20]} Nd6 {[%emt 0:00:03]} 25. Qd3 {[%emt 0:00:40]} Ne8 {[%emt 0:02:27]} 26. a4 {[%emt 0:00:33]} Rb8 {[%emt 0:00:20]} 27. Qd5 {[%emt 0:00:21]} Qxd5 {[%emt 0:00:03]} 28. exd5 {[%emt 0:00:01]} e4 {[%emt 0:00:01]} 29. Nd2 {[%emt 0:00:02]} Ndf6 {[%emt 0:00:02]} 30. Be5 {[%emt 0:00:35]} Rbc8 {[%emt 0:00:01]} 31. d6 {[%emt 0:00:39]} Bxd6 {[%emt 0:00:02]} 32. Bc3 {[%emt 0:00:17]} Rd7 {[%emt 0:00:25]} 33. h3 {[%emt 0:00:44]} Re7 {[%emt 0:00:04]} 34. Kf1 {[%emt 0:00:16]} Rb8 {[%emt 0:00:16]} 35. Bb2 {[%emt 0:00:27]} Nd7 {[%emt 0:00:23]} 36. Ba3 {[%emt 0:00:11]} Nef6 {[%emt 0:00:26]} 37. Rd1 {[%emt 0:00:04]} Re6 {[%emt 0:00:17]} 38. Ke2 {[%emt 0:00:13]} Bf8 {[%emt 0:00:11]} 39. Nf1 {[%emt 0:00:14]} Rc8 {[%emt 0:00:22]} 40. Bb2 {[%emt 0:00:17]} Nb6 {[%emt 0:00:15]} 41. a5 {[%emt 0:00:48]} Nbd5 {[%emt 0:00:11]} 42. Rcd2 {[%emt 0:00:17]} Nb4 {[%emt 0:00:09]} 43. Bb1 {[%emt 0:00:01]} Nc6 {[%emt 0:00:09]} 44. Bc2 {[%emt 0:00:07]} Nxa5 {[%emt 0:00:08]} 45. Ra1 {[%emt 0:00:01]} Nb7 {[%emt 0:00:02]} 46. Bxf6 {[%emt 0:00:03]} gxf6 {[%emt 0:00:02]} 47. Ng3 {[%emt 0:00:01]} f5 {[%emt 0:00:52]} 48. Rd7 {[%emt 0:00:01]} Nd6 {[%emt 0:00:18]} 49. Rxa6 {[%emt 0:00:20]} c4 {[%emt 0:00:13]} 50. bxc4 {[%emt 0:00:07]} Nxc4 {[%emt 0:00:01]} 51. Rxe6 {[%emt 0:00:05]} fxe6 {[%emt 0:00:01]} 52. Bb3 {[%emt 0:00:01]} Bg7 {[%emt 0:00:13]} 53. Nh5 {[%emt 0:00:24]} Be5 {[%emt 0:00:01]} 54. f4 {[%emt 0:00:01]} exf3+ {[%emt 0:00:02]} 55. gxf3 {[%emt 0:00:01]} Rc7 {[%emt 0:00:02]} 56. Rd8+ {[%emt 0:00:19]} Kh7 {[%emt 0:00:01]} 57. f4 {[%emt 0:00:03]} Bb2 {[%emt 0:00:01]} 58. Rb8 {[%emt 0:00:04]} Kg6 {[%emt 0:00:17]} 59. Ng3 {[%emt 0:00:02]} Rc5 {[%emt 0:00:01]} 60. h4 {[%emt 0:00:12]} Bf6 {[%emt 0:00:13]} 61. h5+ {[%emt 0:00:03]} Kf7 {[%emt 0:00:02]} 62. Rb7+ {[%emt 0:00:04]} Be7 {[%emt 0:00:02]} 63. Nh1 {[%emt 0:00:27]} Na5 {[%emt 0:00:04]} 64. Bxe6+ {[%emt 0:00:14]} Kxe6 {[%emt 0:00:02]} 65. Rb6+ {[%emt 0:00:01]} Bd6 {[%emt 0:00:04]} 66. Nf2 {[%emt 0:00:01]} b4 {[%emt 0:00:09]} 67. Nd3 {[%emt 0:00:02]} Rc2+ {[%emt 0:00:01]} 68. Kf3 {[%emt 0:00:01]} Nc4 {[%emt 0:00:04]} 69. Nc5+ {[%emt 0:00:06]} Kd5 {[%emt 0:00:03]} 70. Nd7 {[%emt 0:00:04]} Nxb6 {[%emt 0:00:02]} 0-1

[Event "Romanian GP Final KO 2023"]
[Site "Alba Iulia"]
[Date "2023.12.05"]
[Round "2.2"]
[White "Secheres, Adrian-Simion"]
[Black "Obada, Ema"]
[Result "0-1"]
[ECO "A73"]
[WhiteElo "2381"]
[BlackElo "2035"]
[Annotator "RC"]
[PlyCount "88"]
[EventDate "2023.12.04"]
[EventType "k.o."]
[EventCountry "ROU"]
[SourceTitle "playchess.com"]
[Source "ChessBase"]
[SourceQuality "1"]
[TimeControl "900+5"]

1. d4 {[%emt 0:00:02]} Nf6 {[%emt 0:00:01]} 2. c4 {[%emt 0:00:02]} e6 {[%emt 0:00:01]} 3. Nf3 {[%emt 0:00:02]} c5 {[%emt 0:00:02]} 4. d5 {[%emt 0:00:04]} d6 {[%emt 0:00:01]} 5. Nc3 {[%emt 0:00:28]} exd5 {[%emt 0:00:02]} 6. cxd5 {[%emt 0:00:02]} g6 {[%emt 0:00:02]} 7. Nd2 {[%emt 0:00:05]} Bg7 {[%emt 0:00:10]} 8. e4 {[%emt 0:00:02]} O-O {[%emt 0:00:24]} 9. Be2 {[%emt 0:00:02]} Na6 {[%emt 0:02:23]} 10. O-O {[%emt 0:00:15]} Nc7 {[%emt 0:00:08]} 11. a4 {[%emt 0:00:26]} b6 {[%emt 0:00:57]} 12. Kh1 {[%emt 0:01:47]} Ba6 {[%emt 0:00:57]} 13. Nb5 {[%emt 0:00:47]} Re8 {[%emt 0:01:37]} 14. f3 {[%emt 0:00:45]} Bxb5 {[%emt 0:01:41]} 15. Bxb5 {[%emt 0:02:47]} Nxb5 {[%emt 0:00:56]} 16. axb5 {[%emt 0:00:01]} a6 {[%emt 0:01:12]} 17. Nc4 {[%emt 0:01:53]} a5 {[%emt 0:00:45]} 18. Bf4 {[%emt 0:00:09]} Bf8 {[%emt 0:00:01]} 19. Qd2 {[%emt 0:00:44]} Nh5 {[%emt 0:00:15]} 20. Bg5 {[%emt 0:00:40]} Qc7 {[%emt 0:00:25]} 21. g4 {[%emt 0:00:16]} Ng7 {[%emt 0:00:08]} 22. Bf6 {[%emt 0:00:35]} Be7 {[%emt 0:00:54]} 23. Bc3 {[%emt 0:00:12]} Rab8 {[%emt 0:01:35]} 24. e5 {[%emt 0:01:24]} Qd7 {[%emt 0:00:21]} 25. Rad1 {[%emt 0:01:09]} Qxb5 {[%emt 0:01:05]} 26. Qf4 {[%emt 0:00:02]} dxe5 {[%emt 0:00:51]} 27. Nxe5 {[%emt 0:00:22]} f6 {[%emt 0:00:11]} 28. Nc6 {[%emt 0:00:33]} Rb7 {[%emt 0:00:01]} 29. Rfe1 {[%emt 0:00:12]} Rd7 {[%emt 0:00:14]} 30. Bxf6 {[%emt 0:01:07]} Bxf6 {[%emt 0:00:06]} 31. Qxf6 {[%emt 0:00:01]} Rf7 {[%emt 0:00:05]} 32. Rxe8+ {[%emt 0:00:22]} Nxe8 {[%emt 0:00:01]} 33. Qe5 {[%emt 0:00:12]} Nf6 {[%emt 0:00:08]} 34. g5 {[%emt 0:00:10]} Nd7 {[%emt 0:00:06]} 35. Qe6 {[%emt 0:00:08]} Qb3 {[%emt 0:00:04]} 36. Rf1 {[%emt 0:00:03]} Qd3 {[%emt 0:00:03]} 37. Kg2 {[%emt 0:00:05]} Qd2+ {[%emt 0:00:01]} 38. Kh1 {[%emt 0:00:04]} Qxg5 {[%emt 0:00:01]} 39. f4 {[%emt 0:00:06]} Qf6 {[%emt 0:00:01]} 40. Qxf6 {[%emt 0:00:10]} Nxf6 {[%emt 0:00:01]} 41. d6 {[%emt 0:00:04]} Rd7 {[%emt 0:00:01]} 42. Rd1 {[%emt 0:00:05]} Ne4 {[%emt 0:00:06]} 43. Ne7+ {[%emt 0:00:05]} Kf7 {[%emt 0:00:01]} 44. Nc8 {[%emt 0:00:00]} Nf2+ {[%emt 0:00:12]} 0-1

[Event "Romanian GP Final KO 2023"]
[Site "Alba Iulia"]
[Date "2023.12.05"]
[Round "2.2"]
[White "David, Alexandru-Vasile"]
[Black "Ghimpu, Samuel-Timotei"]
[Result "1/2-1/2"]
[ECO "E44"]
[WhiteElo "2372"]
[BlackElo "2472"]
[Annotator "RC"]
[PlyCount "23"]
[EventDate "2023.12.04"]
[EventType "k.o."]
[EventCountry "ROU"]
[SourceTitle "playchess.com"]
[Source "ChessBase"]
[SourceQuality "1"]
[TimeControl "900+5"]

1. d4 {[%emt 0:00:03]} Nf6 {[%emt 0:00:04]} 2. c4 {[%emt 0:00:01]} e6 {[%emt 0:00:01]} 3. Nc3 {[%emt 0:00:02]} Bb4 {[%emt 0:00:30]} 4. e3 {[%emt 0:00:02]} Ne4 {[%emt 0:00:01]} 5. Nge2 {[%emt 0:00:06]} b6 {[%emt 0:00:23]} 6. Qc2 {[%emt 0:00:08]} Bb7 {[%emt 0:00:05]} 7. a3 {[%emt 0:00:02]} Bxc3+ {[%emt 0:00:02]} 8. Nxc3 {[%emt 0:00:01]} Nxc3 {[%emt 0:00:02]} 9. Qxc3 {[%emt 0:00:04]} d6 {[%emt 0:00:04]} 10. h4 {[%emt 0:00:17]} Nd7 {[%emt 0:00:16]} 11. b3 {[%emt 0:00:11]} O-O {[%emt 0:00:22]} 12. Bb2 {[%emt 0:00:05]} 1/2-1/2

[Event "Romanian GP Final KO 2023"]
[Site "Alba Iulia"]
[Date "2023.12.05"]
[Round "2.3"]
[White "Gavrilescu, David"]
[Black "Chigaev, Maksim"]
[Result "0-1"]
[ECO "C28"]
[WhiteElo "2534"]
[BlackElo "2626"]
[Annotator "TA"]
[PlyCount "111"]
[EventDate "2023.12.04"]
[EventType "k.o."]
[EventCountry "ROU"]
[SourceTitle "playchess.com"]
[Source "ChessBase"]
[SourceQuality "1"]
[TimeControl "900+5"]

{[%evp 15,111,0,-7,-11,9,8,0,0,0,0,0,-6,0,-12,-7,-19,-10,-29,-16,-35,-14,-47,-18,-23,0,-25,-8,-27,-31,-31,0,-12,0,0,2,0,0,0,0,0,0,0,7,0,0,0,0,0,0,0,0,-8,0,0,0,0,0,-15,-11,-101,-105,-571,-607,-800,-800,-802,-797,-791,-751,-1348,-275,-1475,-521,-767,-689,-769,-762,-924,-916,-1459,-1444,-1447,-1388,-1354,-1412,-1737,-1568,-29970,-29974,-29978,-29979,-29976,-29977,-29985,-29986,-29986,-29987,-29987]} 1. e4 {[%emt 0:10:11]} e5 {[%emt 0:11:11]} 2. Bc4 {[%emt 0:00:06]} Nf6 {[%emt 0:00:07]} 3. d3 {[%emt 0:00:06]} Nc6 {[%emt 0:00:10]} 4. Nc3 {[%emt 0:00:06]} Bb4 {[%emt 0:00:06]} 5. Nge2 {[%emt 0:00:06]} d5 {[%emt 0:00:09]} 6. exd5 {[%emt 0:00:06]} Nxd5 {[%emt 0:00:06]} 7. O-O {[%emt 0:00:07]} Be6 {[%emt 0:00:07]} 8. Bxd5 {[%emt 0:00:06]} Bxd5 {[%emt 0:00:06]} 9. f4 {[%emt 0:00:06] C28: Vienna Game: 2...Nf6 3 Bc4 Nc6.} f6 {[%emt 0:00:05]} 10. fxe5 {[%emt 0:00:07]} Nxe5 {[%emt 0:00:12]} 11. Nxd5 {[%emt 0:00:09] The position is equal.} Qxd5 {[%emt 0:00:06]} 12. Nf4 {[%emt 0:00:07]} Qd7 {[%emt 0:00:14]} 13. d4 {[%emt 0:00:07] Dodges Bc5} O-O-O {[%emt 0:00:14]} 14. c3 {[%emt 0:00:09]} Bd6 {[%emt 0:00:07][%cal Oh8e8] [#]} 15. Kh1 $146 {[%emt 0:00:20]} ({Predecessor:} 15. Qb3 Ng6 16. Ne6 Rde8 17. d5 Nf8 18. Nd4 Ng6 19. Ne6 Nf8 20. Nd4 Ng6 21. Ne6 {½-½ Andreikin,D (2724)-Giri,A (2771) Belgrade FIDE GP 2 KO 2022 (1.3)}) 15... Ng6 {[%emt 0:00:10]} 16. Nd3 {[%emt 0:00:09]} h5 {[%emt 0:00:15]} 17. Qf3 {[%emt 0:00:06]} Qg4 {[%emt 0:00:08]} (17... Rde8 {keeps more tension.} 18. Rf2 Nh4 19. Qd1 Qg4) 18. Bd2 {[%emt 0:00:15]} (18. Be3 {is interesting.} Rde8 19. Rae1 Re4 20. Kg1) 18... Qxf3 {[%emt 0:00:19]} (18... c5 {with more complications.} 19. Rae1 Qxf3 20. Rxf3 cxd4 21. cxd4 Rhe8) 19. Rxf3 {[%emt 0:00:06]} Rde8 {[%emt 0:00:07]} 20. Rf2 {[%emt 0:00:08]} Re4 {[%emt 0:00:10]} 21. a4 {[%emt 0:00:22]} Rhe8 {[%emt 0:00:07]} 22. Kg1 {[%emt 0:00:09][%cal Bh1g1,Bg1f1,Bf1f2,Bf2f3,Bf3g2][%mdl 32]} Re2 {[%emt 0:00:07]} 23. Kf1 {[%emt 0:00:10]} Rxf2+ {[%emt 0:00:07]} 24. Kxf2 {[%emt 0:00:06]} c6 {[%emt 0:00:20]} 25. g3 {[%emt 0:00:18]} h4 {[%emt 0:00:07]} 26. Kf3 {[%emt 0:00:07]} hxg3 27. hxg3 {[%emt 0:00:06]} Rh8 {[%emt 0:00:18]} 28. Kg2 {[%emt 0:00:15]} Re8 {[%emt 0:00:06]} 29. Kf3 {[%emt 0:00:13] Prevents Re2} Rh8 {[%emt 0:00:06]} 30. Be3 {[%emt 0:00:06]} a6 {[%emt 0:00:14]} 31. Bf2 {[%emt 0:00:08]} Kd7 {[%emt 0:00:06]} 32. Re1 {[%emt 0:00:07]} Ne7 {[%emt 0:00:13]} 33. c4 {[%emt 0:00:09]} g5 {[%emt 0:00:07]} 34. Rd1 {[%emt 0:00:23]} Ng6 {[%emt 0:00:16]} 35. Kg4 {[%emt 0:00:15]} Ke6 {[%emt 0:00:11]} 36. Kf3 {[%emt 0:00:16]} f5 {[%emt 0:00:12]} 37. b3 {[%emt 0:00:15] [#]} (37. d5+ $11 {keeps the balance.} cxd5 38. cxd5+ Kd7 39. Re1) 37... Rh2 $1 $17 {[%emt 0:00:10] Black is more active.} 38. Nc5+ $2 {[%emt 0:00:08][%mdl 8192] [#] White does not recover from this.} (38. d5+ $17 cxd5 39. cxd5+ Kf6 40. Bd4+ Kf7 41. Rg1) 38... Bxc5 $1 $19 {[%emt 0:00:09]} 39. Bg1 {[%emt 0:00:51]} g4+ {[%emt 0:00:08]} 40. Ke3 {[%emt 0:00:06]} Rg2 {[%emt 0:00:23]} 41. dxc5 {[%emt 0:00:06]} Rxg3+ {[%emt 0:00:06][%mdl 4096] Endgame KRB-KRN} 42. Kd4 {[%emt 0:00:06]} f4 $2 {[%emt 0:00:06]} (42... Nf4 {[%cal Rf4e2]} 43. Be3 Ne2+ 44. Kd3 f4 {[%mdl 64] Pin} 45. Kxe2 Rxe3+ 46. Kf2 Rxb3) 43. Re1+ {[%emt 0:00:10]} (43. Ke4 f3 44. Rd6+ Kf7 45. Bd4) 43... Kf7 {[%emt 0:00:07]} (43... Kf5 $142 44. Bh2 Rf3 45. Bxf4 Kxf4) 44. b4 {[%emt 0:00:08]} Rb3 {[%emt 0:00:06][%cal Of7f6] And now ...Kf6! would win.} 45. b5 {[%emt 0:00:09]} g3 {[%emt 0:00:06][%cal Bg4g3,Bg3g2][%mdl 32]} 46. Rf1 {[%emt 0:00:12]} Ke6 {[%emt 0:00:06]} 47. bxc6 {[%emt 0:00:07]} bxc6 {[%emt 0:00:06] ( -> ...Kf5)} 48. Ke4 {[%emt 0:00:07]} Kf6 {[%emt 0:00:10]} 49. Bd4+ {[%emt 0:00:06]} Kg5 {[%emt 0:00:06] White must now prevent ...g2.} 50. Rh1 {[%emt 0:00:09]} g2 {[%emt 0:00:07][%cal Rg2h1]} 51. Rg1 {[%emt 0:00:06]} f3 {[%emt 0:00:09] Black mates.} 52. Bf2 {[%emt 0:00:09]} Kg4 {[%emt 0:00:34]} 53. Rd1 {[%emt 0:00:07]} Rb2 {[%emt 0:00:00]} 54. Bd4 {[%emt 0:00:17]} Re2+ {[%emt 0:00:00]} 55. Kd3 {[%emt 0:00:07]} Nf4+ {[%emt 0:00:00]} 56. Kc3 {[%emt 0:00:06] Weighted Error Value: White=0.93/Black=0.28 (precise)} 0-1

[Event "Romanian GP Final KO 2023"]
[Site "Alba Iulia"]
[Date "2023.12.05"]
[Round "2.3"]
[White "Nanu, Costica-Ciprian"]
[Black "Parligras, Mircea-Emilian"]
[Result "0-1"]
[ECO "A13"]
[WhiteElo "2524"]
[BlackElo "2539"]
[Annotator "TA"]
[PlyCount "62"]
[EventDate "2023.12.04"]
[EventType "k.o."]
[EventCountry "ROU"]
[SourceTitle "playchess.com"]
[Source "ChessBase"]
[SourceQuality "1"]
[TimeControl "900+5"]

{[%evp 18,62,18,14,16,23,21,20,21,33,33,16,22,13,17,13,16,0,0,0,30,30,27,25,39,38,39,36,41,38,42,41,56,45,99,10,10,10,15,10,20,-1078,-1050,-1018,0,0,0]} 1. c4 {[%emt 0:10:10]} e6 {[%emt 0:11:11]} 2. Nf3 {[%emt 0:05:05]} d5 3. e3 {[%emt 0:00:00]} Nf6 {[%emt 0:00:11]} 4. b3 {[%emt 0:00:00]} c5 {[%emt 0:00:06]} 5. Bb2 {[%emt 0:00:00]} Nc6 {[%emt 0:00:06]} 6. cxd5 {[%emt 0:00:00]} exd5 {[%emt 0:00:06]} 7. Be2 {[%emt 0:00:00]} Bd6 {[%emt 0:00:06]} 8. O-O {[%emt 0:00:00]} O-O {[%emt 0:00:07]} 9. d4 {[%emt 0:00:00]} cxd4 {[%emt 0:00:07]} 10. Nxd4 {[%emt 0:00:00]} Re8 {[%emt 0:00:06] A13: English Opening: 1...e6.} 11. Nd2 {[%emt 0:00:00][%cal Bb1d2,Bd2f3,Bf3g5][%mdl 32]} Nxd4 {[%emt 0:00:07]} 12. Bxd4 {[%emt 0:00:00]} Bf5 {[%emt 0:00:05]} 13. Nf3 {[%emt 0:00:00]} Be4 {[%emt 0:00:07] [#]} 14. Bb5 $146 {[%emt 0:00:00]} ({Predecessor:} 14. Ng5 Bg6 15. Bb5 Re7 16. Bd3 Ne4 17. Nxe4 dxe4 18. Bc4 {½-½ Roim Ferreira,R-Lagergren,H (1877) W-ch WS/O/1479 email 2022}) 14... Rf8 {[%emt 0:00:07]} 15. Bb2 {[%emt 0:00:00]} a6 {[%emt 0:00:08]} 16. Bd3 {[%emt 0:00:00]} Qe7 {[%emt 0:00:10]} 17. Ng5 {[%emt 0:00:00]} Bxd3 {[%emt 0:00:15]} 18. Qxd3 {[%emt 0:00:00] [#] Strongly threatening Bxf6.} Be5 {[%emt 0:00:06]} (18... Bxh2+ $5 19. Kxh2 Ng4+ {[%mdl 64] Discovered Attack} 20. Kg3 (20. Kg1 Qxg5 21. Qd4 Rfe8 $17) 20... Qxg5 $15) 19. Bxe5 {[%emt 0:00:00]} Qxe5 {[%emt 0:00:06]} 20. Nf3 {[%emt 0:00:00]} Qe4 {[%emt 0:00:08]} 21. Qd2 {[%emt 0:00:00]} Rac8 {[%emt 0:00:07]} 22. Rac1 {[%emt 0:00:00]} h6 {[%emt 0:00:07]} 23. h3 {[%emt 0:00:00]} Rfd8 {[%emt 0:00:16]} 24. Rfd1 {[%emt 0:00:00]} Qf5 {[%emt 0:00:15]} 25. Qa5 {[%emt 0:00:00]} Re8 {[%emt 0:00:12]} ({Black should play} 25... Ne4 $14) 26. Qb6 {[%emt 0:00:00]} ({White should try} 26. Rc7 $16) 26... Rxc1 $11 {[%emt 0:00:10]} 27. Rxc1 {[%emt 0:00:00]} Rc8 {[%emt 0:00:06]} 28. Rd1 {[%emt 0:00:00]} Qc2 {[%emt 0:00:07]} 29. Rd2 {[%emt 0:00:00][%mdl 8192] [#]} (29. Rf1 $11) 29... Qb1+ $19 {[%emt 0:00:15]} 30. Kh2 {[%emt 0:00:00]} Ne4 $2 {[%emt 0:00:06]} ({Better is} 30... Rc1 $19 {( -> ...Rh1+)} 31. Qxf6 gxf6) 31. Qxb7 $11 {[%emt 0:01:27]} (31. Rxd5 $2 {too greedy.} Rc1 32. Qd8+ Kh7 $19) 31... Rc1 $1 {[%emt 0:00:07][%mdl 32768] Weighted Error Value: White=0.39/Black=0.25 (precise) . Loss on time!?} 0-1